bitfinex/quotes_ETHUSD_20260109
["timestamp","ask_amount","ask_price","bid_price","bid_amount"]
[1767985414148,0.00080448,3090.0,3089.6,0.90097362]
[1767985416649,0.00080448,3090.0,3089.6,4.1375377]
[1767985417050,0.00080448,3090.0,3089.2,0.90097362]
[1767985417439,0.00080448,3090.0,3089.3,0.90097362]
[1767985418952,0.00080448,3090.0,3089.4,4.13781617]
[1767985420149,0.00080448,3090.0,3089.4,7.37469064]
[1767985420349,0.00080448,3090.0,3089.4,8.1121597]
[1767985421055,0.00080448,3090.0,3089.4,4.87528523]
[1767985422252,0.00080448,3090.0,3089.0,0.00080328]
[1767985423135,0.86272966,3089.9,3089.0,0.00080328]
[1767985424652,0.86272966,3089.9,3089.3,0.002]
[1767985424866,0.86272966,3089.9,3089.0,0.00280328]
[1767985425165,0.01930595,3089.7,3089.0,0.00280328]
[1767985425362,0.73356405,3089.6,3089.0,0.00280328]
[1767985426764,1.57698776,3089.6,3089.0,0.00280328]
[1767985427077,0.86272966,3089.3,3088.7,0.00080504]
[1767985427256,0.84342371,3089.1,3088.7,0.00080504]
[1767985428169,0.27330595,3089.3,3088.7,0.00080504]
[1767985429291,3.51032371,3089.3,3088.7,0.00080504]
[1767985430065,0.27330595,3089.3,3088.7,0.00080504]
[1767985430433,0.27330595,3089.3,3088.7,0.9074664]
[1767985430434,0.254,3089.3,3088.7,0.9074664]
[1767985431054,0.254,3089.3,3088.7,0.00080504]
[1767985434135,0.27330595,3089.3,3088.7,0.00080504]
[1767985436465,3.5103012,3089.3,3088.7,0.00080504]
[1767985436780,3.5103012,3089.3,3089.0,0.002]
[1767985436989,0.35111045,3089.2,3089.0,0.002]
[1767985438054,0.27330595,3089.3,3089.0,0.002]
[1767985440687,0.00080328,3089.4,3089.0,0.90866136]
[1767985441073,0.00080328,3089.4,3089.0,0.002]
[1767985441462,0.00080328,3089.4,3089.0,0.90866136]
[1767985441672,0.02011043,3090.0,3089.0,0.90866136]
[1767985441992,0.00080448,3090.0,3089.1,0.90666136]
[1767985442652,3.23705292,3090.0,3089.1,0.90666136]
[1767985443082,3.23705292,3090.0,3089.1,4.14383936]
[1767985443285,3.25635887,3090.0,3089.1,0.90666136]
[1767985443506,4.09978258,3090.0,3089.1,3.23718761]
[1767985443794,1.60525291,3090.0,3089.1,6.47437643]
[1767985444003,1.60525291,3090.0,3089.1,3.23718761]
[1767985444299,0.7618292,3090.0,3089.2,0.99485181]
[1767985445354,0.7618292,3090.0,3089.3,0.99485181]
[1767985445563,0.00080448,3090.0,3089.3,0.99485181]
[1767985446502,3.23705891,3090.0,3089.1,4.23199876]
[1767985446673,0.00080448,3090.0,3089.2,4.23192228]
[1767985446857,0.00080448,3090.0,3089.3,0.99485181]
[1767985448368,0.66944628,3090.0,3089.0,4.234889]
[1767985448570,0.66944628,3090.0,3089.1,4.23202243]
[1767985448781,0.66944628,3090.0,3089.2,0.99485181]
[1767985449282,0.001,3089.7,3089.2,0.99485181]
[1767985449488,0.001,3089.7,3089.2,1.41833852]
[1767985449793,0.001,3089.7,3089.3,0.99485181]
[1767985450086,0.001,3089.7,3089.0,0.99765517]
[1767985450658,0.84442371,3089.7,3089.0,0.00280336]
[1767985450859,0.86272966,3089.6,3089.0,0.00280336]
[1767985451086,0.01930595,3089.4,3089.0,0.00280336]
[1767985452290,3.58372788,3089.4,3089.0,0.00280336]
[1767985457268,0.34685254,3089.4,3089.0,0.00280336]
[1767985458201,3.58373658,3089.4,3089.0,0.00280336]
[1767985458365,0.34685254,3089.4,3089.0,0.00280336]
[1767985458560,0.32754659,3089.4,3089.0,0.00280336]
[1767985458764,0.01930595,3089.6,3089.0,0.99765517]
[1767985459077,0.27330595,3089.6,3089.0,0.99765517]
[1767985459278,3.50998633,3089.6,3089.0,0.99765517]
[1767985460596,0.001,3089.7,3089.1,0.99485181]
[1767985460899,0.001,3089.7,3088.7,0.00080504]
[1767985460900,0.01930595,3089.1,3088.7,0.00080504]
[1767985461065,5.68511821,3088.9,3088.1,0.99485181]
[1767985461514,0.01930595,3088.7,3088.1,0.99485181]
[1767985461721,0.01930595,3088.7,3087.8,0.99485181]
[1767985461722,0.01930595,3088.5,3087.8,0.99485181]
[1767985461893,5.68511821,3088.3,3087.6,0.99485181]
[1767985462094,5.68511821,3088.3,3087.5,0.00280384]
[1767985462398,5.68511821,3088.3,3087.5,4.236516]
[1767985462599,0.01930595,3088.3,3087.5,0.00280384]
[1767985463117,0.84342371,3088.2,3087.5,0.00280384]
[1767985464954,3.2382371,3088.1,3087.5,0.00280384]
[1767985465819,3.25754305,3088.1,3087.5,0.00280384]
[1767985466406,0.01930595,3088.1,3087.5,0.00280384]
[1767985467124,4.35499067,3088.1,3087.5,0.00280384]
[1767985467289,0.75931322,3088.0,3087.5,0.00280384]
[1767985467823,0.254,3088.1,3087.5,0.99765565]
[1767985468011,0.254,3088.3,3087.5,0.99765565]
[1767985469695,0.86272966,3088.7,3087.5,0.99765565]
[1767985469696,0.01930595,3088.7,3087.6,0.99485181]
[1767985469966,0.27330595,3088.7,3087.6,0.99485181]
[1767985470239,0.02011099,3089.1,3087.8,0.99485181]
[1767985470398,0.254,3089.0,3087.8,0.99485181]
[1767985470593,0.00080504,3089.1,3087.8,0.99485181]
[1767985471138,0.00080504,3089.1,3088.0,0.99485181]
[1767985471296,0.00080504,3089.1,3088.2,0.99485181]
[1767985472229,0.00080336,3089.4,3089.0,0.99485181]
[1767985473195,0.00080336,3089.4,3089.0,4.23213094]
[1767985473739,0.00080336,3089.4,3089.0,0.99485181]
[1767985473933,0.00080336,3089.4,3089.1,0.96935467]
[1767985474151,0.001,3089.7,3089.4,0.96935467]
[1767985474304,0.001,3089.7,3089.2,1.39001706]
[1767985474494,0.001,3089.7,3089.3,0.96935467]
[1767985474897,0.00080448,3090.0,3089.3,0.96935467]
[1767985475104,0.00080448,3090.0,3089.4,3.23687447]
[1767985475347,0.00080448,3090.0,3089.5,0.74431748]
[1767985476906,0.00080448,3090.0,3089.5,1.71367215]
[1767985477247,0.00080448,3090.0,3089.5,0.74431748]
[1767985478947,0.00080448,3090.0,3089.5,3.98105734]
[1767985479109,0.00080448,3090.0,3089.5,8.18718171]
[1767985479310,0.00080448,3090.0,3089.6,0.81871817]
[1767985480070,0.00080448,3090.0,3089.3,3.23689706]
[1767985480274,0.00080448,3090.0,3089.4,0.96935467]
[1767985483262,0.00080448,3090.0,3089.6,0.96935467]
[1767985483952,0.001,3090.2,3089.6,0.97015923]
[1767985484689,3.23704737,3090.2,3089.6,0.97015923]
[1767985484891,0.001,3089.7,3089.6,0.97015923]
[1767985487654,0.001,3089.7,3089.6,0.00080456]
[1767985490159,0.001,3089.7,3089.6,0.90581472]
[1767985496667,0.001,3089.7,3089.6,0.00080456]
[1767985499586,0.84522707,3089.7,3089.0,0.00080344]
[1767985499792,0.86353302,3089.6,3089.0,0.00080344]
[1767985500581,0.41011286,3089.5,3089.0,0.00080344]
[1767985501532,0.01930595,3089.6,3088.3,0.90701016]
[1767985501533,0.84422707,3089.3,3088.3,0.90701016]
[1767985501831,0.01930595,3089.2,3088.4,3.23782284]
[1767985502028,0.01930595,3089.2,3088.5,3.23780743]
[1767985502333,0.01930595,3089.2,3088.4,4.14286722]
[1767985502991,6.49349675,3089.2,3088.4,0.90501016]
[1767985503185,0.84422707,3089.1,3088.3,0.002]
[1767985504312,4.10109976,3088.8,3088.3,0.002]
[1767985504643,0.84422707,3088.6,3088.3,0.002]
[1767985504920,0.86353302,3088.6,3087.6,0.254]
[1767985505083,0.86353302,3088.6,3087.5,3.24161701]
[1767985505817,0.86353302,3088.6,3087.5,0.91899778]
[1767985506010,0.41011411,3088.5,3087.5,0.91899778]
[1767985506804,0.41011411,3088.5,3087.6,4.15494165]
[1767985508031,0.41011411,3088.5,3087.6,7.39370314]
[1767985508489,0.41011411,3088.5,3087.6,4.15494165]
[1767985509130,3.64795675,3088.5,3087.6,4.15494165]
[1767985509332,0.45114898,3088.4,3087.6,4.15494165]
[1767985509704,0.45114898,3088.4,3087.8,0.002]
[1767985509899,0.45114898,3088.4,3087.8,0.91819394]
[1767985510245,0.01930595,3088.6,3087.8,0.91819394]
[1767985510528,0.01930595,3088.8,3087.8,0.91819394]
[1767985511626,3.25687546,3088.8,3088.0,0.91619394]
[1767985514817,3.25687546,3088.8,3088.1,0.91619394]
[1767985515511,0.01930595,3088.8,3088.1,0.91619394]
[1767985515696,0.35107243,3088.7,3088.1,0.91619394]
[1767985516715,0.35107243,3088.7,3088.0,0.91619394]
[1767985517019,3.58869292,3088.7,3088.0,0.91619394]
[1767985518030,0.01930595,3088.6,3088.0,0.91619394]
[1767985519521,0.01930595,3088.2,3087.5,0.00280384]
[1767985519721,0.254,3088.1,3087.5,0.00280384]
[1767985519908,3.49229775,3088.1,3087.5,0.00280384]
[1767985520420,0.254,3088.1,3087.5,0.00280384]
[1767985521434,0.254,3088.1,3087.5,0.91899778]
[1767985521722,0.25200001,3088.1,3087.7,0.91619394]
[1767985522222,0.25200001,3088.1,3087.8,0.002]
[1767985527800,3.49024051,3088.1,3087.8,0.002]
[1767985528130,0.34902405,3088.0,3087.8,0.002]
[1767985529308,0.25200001,3088.1,3087.8,0.002]
[1767985531827,0.25200001,3088.1,3087.8,0.91819394]
[1767985532206,0.25200001,3088.1,3087.8,0.002]
[1767985533441,0.25200001,3088.1,3087.8,0.97356464]
[1767985534235,0.25000002,3088.1,3087.8,0.97356464]
[1767985537924,0.84422707,3088.9,3087.9,0.97156464]
[1767985538124,0.27330595,3089.0,3088.1,0.97156464]
[1767985538718,0.254,3089.0,3088.1,0.97156464]
[1767985539046,3.49129607,3089.0,3088.1,0.97156464]
[1767985539550,0.254,3089.0,3088.1,0.97156464]
[1767985539749,0.254,3089.0,3088.3,0.97156464]
[1767985540243,3.49134395,3089.0,3088.3,0.97156464]
[1767985540612,4.35487697,3089.0,3088.3,0.97156464]
[1767985540812,3.5106499,3089.0,3088.3,0.97156464]
[1767985541047,3.5086499,3089.0,3088.3,0.97156464]
[1767985541215,3.5086499,3089.0,3088.3,1.40970599]
[1767985541813,0.00080512,3089.1,3088.4,0.97156464]
[1767985542054,0.00080512,3089.1,3088.6,0.97156464]
[1767985542228,0.00080512,3089.1,3088.8,0.97156464]
[1767985543654,0.00080344,3089.4,3088.7,3.23841325]
[1767985543853,0.84503051,3089.4,3088.8,0.64760996]
[1767985544057,0.84503051,3089.4,3088.9,0.255]
[1767985544627,0.00080344,3089.4,3088.9,0.255]
[1767985544923,0.00080344,3089.4,3089.0,0.97156464]
[1767985545559,0.001,3089.1,3089.0,0.97156464]
[1767985545729,0.00080344,3089.4,3089.0,0.83490311]
[1767985546358,0.00080344,3089.4,3089.0,4.07218055]
[1767985546659,0.84522707,3089.7,3089.0,7.31027769]
[1767985546660,0.001,3089.7,3089.0,7.31027769]
[1767985547258,0.84522707,3089.7,3089.0,7.31027769]
[1767985547459,0.84522707,3089.7,3089.0,4.07298407]
[1767985547657,0.84522707,3089.7,3089.1,0.43279841]
[1767985548845,0.84422707,3089.6,3089.1,0.43279841]
[1767985549042,0.84422707,3089.6,3089.0,0.00080352]
[1767985550134,0.84422707,3089.6,3089.1,3.23718585]
[1767985550337,0.001,3089.7,3089.0,3.23803919]
[1767985550536,0.84522707,3089.7,3089.0,3.23803919]
[1767985550759,0.001,3089.7,3089.1,0.92452721]
[1767985551064,0.001,3089.7,3089.1,1.34080012]
[1767985551756,0.001,3089.7,3089.2,0.92452721]
[1767985555536,5.6647658,3089.7,3089.0,0.92533073]
[1767985555739,0.001,3089.7,3089.0,0.92533073]
[1767985557572,3.23756018,3089.7,3089.4,0.002]
[1767985557769,0.32568661,3089.6,3089.4,0.002]
[1767985558272,3.23756018,3089.7,3089.4,0.002]
[1767985558273,0.001,3089.7,3089.4,0.002]
[1767985560258,0.86353302,3089.6,3089.0,0.00280352]
[1767985560636,0.254,3089.5,3089.0,0.92733073]
[1767985561244,0.001,3089.7,3089.1,0.92452721]
[1767985561482,0.65843331,3089.7,3089.1,0.92452721]
[1767985561842,3.23666494,3089.6,3089.0,0.00280352]
[1767985562037,3.23666494,3089.6,3089.0,0.92733073]
[1767985562978,0.001,3089.7,3089.0,0.92733073]
[1767985562979,3.23761087,3089.7,3089.0,0.92733073]
[1767985564076,0.001,3089.7,3089.1,0.94337227]
[1767985564375,0.65908643,3089.7,3089.1,0.94337227]
[1767985565567,0.65808643,3089.6,3089.2,0.94337227]
[1767985565763,0.001,3089.7,3089.2,0.94337227]
[1767985565971,0.65938119,3089.7,3089.2,0.94337227]
[1767985566148,3.23666494,3089.6,3089.2,0.94337227]
[1767985566476,3.23760793,3089.7,3089.2,0.94337227]
[1767985566679,0.65877912,3089.6,3089.2,0.94337227]
[1767985567362,0.65877912,3089.5,3089.2,0.94337227]
[1767985567557,0.001,3089.7,3089.2,0.94337227]
[1767985567950,3.23756265,3089.7,3089.2,0.94337227]
[1767985568167,0.65936343,3089.6,3089.2,0.94337227]
[1767985569368,3.89603515,3089.6,3089.2,0.94337227]
[1767985569569,0.65936343,3089.5,3089.2,0.94337227]
[1767985569780,0.65936343,3089.4,3089.2,0.94337227]
[1767985569982,3.23759997,3089.7,3089.4,0.002]
[1767985570275,0.65989793,3089.6,3089.4,0.002]
[1767985570480,0.65989793,3089.5,3089.4,0.002]
[1767985570877,0.65989793,3089.6,3089.4,0.002]
[1767985571176,0.65989793,3089.5,3089.4,9.921e-05]
[1767985572075,0.001,3089.7,3089.4,9.921e-05]
[1767985572076,0.001,3089.7,3089.4,0.94347148]
[1767985573381,0.001,3089.7,3089.5,0.94337227]
[1767985573756,0.001,3089.7,3089.4,9.921e-05]
[1767985575289,0.84522707,3089.7,3089.0,0.00280352]
[1767985575492,0.84422707,3089.6,3089.0,0.00280352]
[1767985575696,1.09822707,3089.5,3089.0,0.00280352]
[1767985575889,1.77645695,3089.5,3089.0,0.00280352]
[1767985576670,3.23687447,3089.4,3089.0,0.00280352]
[1767985578560,0.254,3089.5,3089.0,0.94617579]
[1767985581995,0.254,3089.5,3089.1,0.94337227]
[1767985582190,0.254,3089.5,3089.3,0.002]
[1767985582696,0.254,3089.5,3089.3,0.94537227]
[1767985588806,0.001,3089.7,3089.3,0.94537227]
[1767985590713,0.001,3089.7,3089.4,0.94337227]
[1767985591013,0.001,3089.7,3089.5,0.94337227]
[1767985592209,0.001,3089.7,3089.3,0.94537227]
[1767985592523,0.001,3089.7,3089.3,0.002]
[1767985592811,1.60243007,3089.7,3089.0,0.00280352]
[1767985593008,6.47332988,3089.6,3089.0,0.00280352]
[1767985593410,7.31755695,3089.6,3089.0,0.00280352]
[1767985593786,7.31755695,3089.6,3088.7,0.0008052]
[1767985593787,0.84503059,3089.4,3088.7,0.0008052]
[1767985594107,1.74910671,3089.3,3088.7,0.0008052]
[1767985594521,0.84422707,3089.1,3088.1,0.90286103]
[1767985594720,0.84422707,3088.8,3088.1,0.002]
[1767985595017,3.23771287,3088.6,3088.1,0.002]
[1767985598703,0.84422707,3088.5,3088.1,0.002]
[1767985599021,3.23764936,3088.7,3088.1,0.90286103]
[1767985599234,0.254,3088.6,3088.1,0.90286103]
[1767985599523,3.2380449,3089.1,3088.1,0.90286103]
[1767985599524,0.254,3088.7,3088.1,0.90286103]
[1767985603434,0.254,3088.7,3088.2,0.90086103]
[1767985607054,0.254,3088.7,3088.4,0.002]
[1767985607758,0.254,3088.7,3088.4,0.90286103]
[1767985608321,0.254,3088.7,3088.4,0.002]
[1767985608746,3.49161653,3088.7,3088.4,0.002]
[1767985608950,0.6600259,3088.6,3088.4,0.002]
[1767985609262,3.89783923,3088.6,3088.1,0.002]
[1767985610130,5.6637658,3088.1,3087.7,0.002]
[1767985610459,0.254,3088.0,3087.7,0.002]
[1767985610965,0.91067787,3087.9,3087.4,0.002]
[1767985611260,1.59352224,3087.9,3087.4,0.002]
[1767985612031,0.68284437,3087.9,3087.4,0.002]
[1767985612236,3.92130063,3087.9,3087.4,0.002]
[1767985612583,8.07043476,3087.9,3087.4,0.002]
[1767985612788,0.91067787,3087.8,3087.2,0.0008234]
[1767985612929,0.91150127,3087.6,3086.8,0.002]
[1767985613132,4.40354426,3087.5,3086.8,0.002]
[1767985614862,3.49286639,3087.5,3086.8,0.002]
[1767985615049,3.49286639,3087.5,3086.8,0.94393671]
[1767985615635,3.49286639,3087.5,3086.8,0.002]
[1767985615835,0.7643163,3087.4,3086.8,0.002]
[1767985616768,1.67499417,3087.4,3086.8,0.002]
[1767985617430,3.23907621,3087.3,3086.8,0.002]
[1767985618066,6.47815242,3087.3,3086.8,0.002]
[1767985618245,7.38883029,3087.3,3086.8,0.002]
[1767985618445,0.81531466,3087.2,3086.5,0.00044355]
[1767985619074,0.91067787,3087.1,3086.3,0.002]
[1767985619249,0.93078758,3086.9,3086.0,0.94038862]
[1767985619562,0.93078758,3086.9,3086.1,0.93594508]
[1767985619734,0.93078758,3086.9,3085.9,4.18523921]
[1767985619935,0.93078758,3086.9,3086.0,4.18236286]
[1767985620134,0.93078758,3086.9,3086.0,0.94193671]
[1767985620338,0.92998382,3086.7,3085.9,0.00280408]
[1767985620789,0.00080408,3086.3,3085.6,0.00080472]
[1767985620937,0.254,3086.2,3085.6,0.94274143]
[1767985621140,1.16467787,3086.2,3085.6,0.00080472]
[1767985621991,0.00080408,3086.3,3085.6,0.94274143]
[1767985623638,0.00080408,3086.3,3085.8,0.91788505]
[1767985624236,0.00080408,3086.3,3085.8,1.3338296]
[1767985624873,0.1827244,3086.5,3085.9,0.91788505]
[1767985625074,0.1827244,3086.5,3085.9,0.91868921]
[1767985625339,0.16610348,3086.5,3085.9,0.91868921]
[1767985625543,0.254,3086.7,3086.0,6.48088138]
[1767985625766,0.254,3086.7,3086.1,0.73995706]
[1767985626449,0.00080376,3086.9,3086.2,0.91788505]
[1767985626852,0.90539657,3087.6,3086.6,0.91788505]
[1767985627053,0.2558234,3087.6,3086.6,0.91788505]
[1767985627668,0.2558234,3087.6,3086.5,0.00080384]
[1767985627669,0.2558234,3087.6,3086.8,0.91788505]
[1767985627975,0.2558234,3087.6,3086.9,0.73972967]
[1767985629798,0.2558234,3087.6,3087.0,3.23939099]
[1767985631446,0.2558234,3087.6,3087.0,6.47878198]
[1767985631844,0.2558234,3087.6,3087.0,7.39666703]
[1767985632246,0.90357317,3088.4,3087.3,0.91788505]
[1767985632460,0.90357317,3088.4,3087.5,0.00080392]
[1767985632461,0.254,3088.1,3087.5,0.00080392]
[1767985635386,3.25675719,3088.9,3088.1,0.91788505]
[1767985635591,0.90357317,3088.8,3087.8,6.59136493]
[1767985635787,0.254,3088.6,3088.0,0.91788505]
[1767985637082,0.25200001,3088.6,3088.3,0.91788505]
[1767985637287,0.0008052,3089.1,3088.3,0.91788505]
[1767985637462,0.00180352,3089.4,3088.5,0.91788505]
[1767985637647,0.00180352,3089.4,3088.7,0.91869033]
[1767985639970,0.35105819,3089.4,3088.7,0.91869033]
[1767985640352,0.00180352,3089.4,3088.7,4.15628569]
[1767985640556,0.00180352,3089.4,3088.8,0.91788505]
[1767985640953,0.001,3089.7,3089.1,0.91788505]
[1767985642204,0.00080456,3090.0,3089.6,0.91788505]
[1767985642369,0.254,3090.6,3089.7,0.91788505]
[1767985642574,0.90357317,3090.5,3089.6,0.00080464]
[1767985644296,0.90357317,3090.4,3089.6,0.00080464]
[1767985644497,0.90357317,3090.2,3089.6,0.00080464]
[1767985644692,0.41393179,3090.3,3089.7,0.91788505]
[1767985644899,0.25483161,3090.7,3089.7,0.91788505]
[1767985645996,0.00083161,3090.7,3089.7,0.91788505]
[1767985646203,0.00083161,3090.7,3089.9,0.91788505]
[1767985646902,0.00083161,3090.7,3090.0,0.91788505]
[1767985648504,0.00083161,3090.7,3089.7,0.91788505]
[1767985649003,0.00083161,3090.7,3089.8,0.91788505]
[1767985649208,0.41480514,3090.7,3089.8,0.91788505]
[1767985651177,0.00083161,3090.7,3089.9,0.91788505]
[1767985652912,0.00083161,3090.7,3090.1,0.91788505]
[1767985654400,0.00083161,3090.7,3089.6,0.00080464]
[1767985654611,0.00083161,3090.7,3089.9,0.97403397]
[1767985655115,0.00083161,3090.7,3089.9,4.2103835]
[1767985655309,0.001,3090.4,3090.0,0.97403397]
[1767985656089,0.00083161,3090.7,3090.0,0.97403397]
[1767985656299,0.00083161,3090.7,3090.0,0.77006917]
[1767985656502,0.00080472,3091.0,3090.3,0.97486641]
[1767985656884,6.44,3091.6,3090.8,0.97403397]
[1767985657104,3.23498022,3092.0,3090.8,0.97403397]
[1767985657306,0.00080536,3092.0,3090.8,0.97403397]
[1767985657514,0.44363228,3092.0,3090.9,0.97403397]
[1767985657809,3.23496102,3092.0,3090.9,0.97403397]
[1767985659185,0.00080536,3092.0,3091.0,0.97403397]
[1767985661192,0.00080536,3092.0,3091.2,0.97403397]
[1767985662617,0.9394576,3092.0,3090.9,0.97403397]
[1767985663008,0.9394576,3092.0,3091.0,0.97403397]
[1767985663202,0.93865224,3091.9,3091.0,0.97403397]
[1767985663517,0.93865224,3091.7,3090.4,4.20983623]
[1767985663694,0.93865224,3091.5,3090.4,4.20984183]
[1767985664215,0.93865224,3091.5,3090.4,0.97403397]
[1767985664415,0.93865224,3091.5,3090.3,0.00083244]
[1767985664620,0.95795819,3091.5,3090.3,4.21073272]
[1767985665389,0.93865224,3091.4,3090.3,0.97486641]
[1767985666315,3.25408611,3091.5,3090.6,0.97483877]
[1767985666514,0.67426739,3091.4,3090.6,0.97483877]
[1767985667096,0.67426739,3091.4,3090.6,0.97683877]
[1767985667294,0.67426739,3091.4,3090.6,0.0028048]
[1767985667497,0.001,3091.2,3090.6,0.0028048]
[1767985669395,0.001,3091.2,3090.6,0.99272969]
[1767985669594,0.001,3091.2,3090.7,0.98992489]
[1767985670793,0.00080536,3092.0,3091.0,0.98992489]
[1767985671626,0.00080536,3092.0,3091.1,0.98992489]
[1767985671822,0.00080536,3092.0,3090.9,0.98992489]
[1767985671823,0.9360254,3092.0,3090.9,0.98992489]
[1767985672023,0.9360254,3092.0,3090.7,0.44823171]
[1767985672024,0.9360254,3092.0,3090.8,0.254]
[1767985672229,0.9360254,3092.0,3090.9,0.98992489]
[1767985672428,0.00080536,3092.0,3091.1,0.98992489]
[1767985673398,0.00080536,3092.0,3091.2,0.98992489]
[1767985673923,0.00080536,3092.0,3091.3,0.98992489]
[1767985674126,10.62790076,3092.8,3091.8,0.98992489]
[1767985674433,0.254,3092.7,3091.8,0.99072913]
[1767985674626,0.99466807,3092.6,3091.8,0.99072913]
[1767985676029,0.99466807,3092.6,3091.8,1.24472913]
[1767985676524,0.99466807,3092.6,3091.9,0.98992489]
[1767985676828,1.1900238,3093.2,3091.9,0.98992489]
[1767985676829,0.25480376,3093.2,3091.9,0.98992489]
[1767985677041,0.00080376,3093.2,3091.9,0.98992489]
[1767985677898,0.00080376,3093.2,3092.1,0.98992489]
[1767985678100,0.9360238,3093.2,3092.1,0.98992489]
[1767985678334,0.9360238,3093.2,3092.2,0.254]
[1767985678532,0.00080376,3093.2,3092.3,0.98992489]
[1767985680356,0.64742193,3093.2,3092.3,0.98992489]
[1767985681247,0.93522004,3093.1,3092.0,0.98992489]
[1767985681422,0.93522004,3093.1,3092.1,0.254]
[1767985681818,0.93522004,3092.8,3091.8,0.00080424]
[1767985682132,0.93522004,3092.6,3091.8,0.00080424]
[1767985682314,0.93522004,3092.4,3091.8,0.00080424]
[1767985683315,0.95452599,3092.4,3091.8,0.00080424]
[1767985683516,0.95452599,3092.4,3090.9,0.91401228]
[1767985683517,0.93945768,3092.0,3091.0,0.254]
[1767985683727,0.00080544,3092.0,3091.2,0.91401228]
[1767985683953,0.00080544,3092.0,3091.3,0.91401228]
[1767985685517,0.00080544,3092.0,3091.4,0.91401228]
[1767985686637,0.00080544,3092.0,3091.6,0.91401228]
[1767985690448,0.00080544,3092.0,3091.5,0.254]
[1767985691054,0.00080544,3092.0,3091.5,1.16801228]
[1767985691563,0.001,3091.7,3091.6,0.91401228]
[1767985691750,0.00080544,3092.0,3091.7,0.91401228]
[1767985691927,0.00080544,3092.0,3091.6,0.76373563]
[1767985692482,0.00080424,3092.2,3091.6,0.76373563]
[1767985692483,0.00080424,3092.2,3091.6,1.67855343]
[1767985692632,0.93865224,3092.7,3091.8,0.9148166]
[1767985693328,0.93865224,3092.7,3091.8,4.1491628]
[1767985693529,0.93865224,3092.7,3091.8,4.88760605]
[1767985694260,0.93865224,3092.7,3091.8,4.88757869]
[1767985694572,0.93865224,3092.6,3091.8,0.00080432]
[1767985694784,0.93865224,3092.6,3091.8,0.25480432]
[1767985695073,0.93865224,3092.5,3091.8,0.00080432]
[1767985697073,7.40612086,3092.4,3091.6,0.00080552]
[1767985697392,0.93945656,3092.2,3091.6,0.00080552]
[1767985698098,0.01930595,3091.7,3090.7,0.91401228]
[1767985698254,0.01930595,3091.4,3090.4,0.91401228]
[1767985699155,0.01930595,3091.4,3090.4,4.14982119]
[1767985700053,3.25409664,3091.4,3090.4,0.91401228]
[1767985700254,3.25409664,3091.4,3090.3,0.00283244]
[1767985700255,0.01930595,3091.1,3090.3,0.00283244]
[1767985702097,0.01930595,3091.1,3090.4,0.91401228]
[1767985702278,0.254,3091.3,3090.6,0.91681708]
[1767985703497,0.254,3091.3,3090.9,0.002]
[1767985703794,0.01930595,3091.4,3090.9,0.002]
[1767985703995,0.001,3091.7,3090.9,0.91601228]
[1767985705369,0.001,3091.7,3091.0,4.14921124]
[1767985706305,0.001,3091.7,3091.0,0.91401228]
[1767985710094,0.01930595,3091.4,3090.6,0.91681708]
[1767985710396,0.001,3091.7,3090.8,3.23534861]
[1767985710581,0.001,3091.7,3090.9,4.56424452]
[1767985710781,0.001,3091.7,3090.9,1.32894837]
[1767985711406,0.001,3091.7,3090.9,4.5642231]
[1767985712509,0.001,3091.7,3090.9,1.32894837]
[1767985712838,0.95715267,3091.6,3090.6,4.15240825]
[1767985713729,0.255,3091.7,3090.8,0.92646274]
[1767985714027,0.255,3091.7,3090.9,0.92646274]
[1767985715433,0.001,3091.7,3091.0,0.92646274]
[1767985717341,0.02030595,3091.7,3091.0,0.92646274]
[1767985717499,0.37118186,3091.7,3091.0,0.92646274]
[1767985718822,0.01930595,3091.5,3090.9,0.002]
[1767985719394,4.1918393,3091.5,3090.9,0.002]
[1767985720732,0.95715267,3091.5,3090.9,0.002]
[1767985721297,0.01930595,3091.5,3090.9,0.002]
[1767985721492,0.32539287,3091.4,3090.9,0.002]
[1767985722840,0.32539287,3091.4,3090.9,0.92846274]
[1767985723045,0.01930595,3091.5,3090.9,0.92846274]
[1767985724737,0.35187591,3091.7,3091.0,0.92646274]
[1767985724928,0.255,3091.7,3091.0,0.92646274]
[1767985725442,0.001,3091.7,3091.0,0.92646274]
[1767985726837,0.95715267,3091.6,3090.9,0.002]
[1767985727249,0.01930595,3091.4,3090.9,0.002]
[1767985727889,3.25512872,3091.4,3090.9,0.002]
[1767985728031,0.32551287,3091.3,3090.9,0.002]
[1767985728243,0.02030595,3091.4,3090.9,0.002]
[1767985729357,0.02030595,3091.4,3090.9,0.97531342]
[1767985730126,0.001,3091.4,3091.1,0.97331342]
[1767985730324,0.001,3091.4,3090.9,0.97531342]
[1767985730525,4.17362877,3091.4,3090.9,0.002]
[1767985730770,1.3552096,3091.3,3090.9,0.002]
[1767985731441,0.93784672,3091.2,3090.9,0.002]
[1767985731645,0.95715267,3091.2,3090.9,0.002]
[1767985732568,0.01930595,3091.2,3090.6,0.0028048]
[1767985732772,0.01930595,3091.2,3090.6,0.97611822]
[1767985733268,0.001,3091.4,3090.6,0.97611822]
[1767985733574,0.4202917,3091.4,3090.6,0.97611822]
[1767985733870,0.001,3091.4,3090.6,0.97611822]
[1767985734485,0.02030595,3091.4,3090.6,0.97611822]
[1767985735184,0.02030595,3091.4,3090.7,0.97331342]
[1767985735776,0.02030595,3091.4,3090.8,0.97331342]
[1767985735777,0.001,3091.4,3090.8,0.97331342]
[1767985736642,0.001,3091.4,3090.9,0.97331342]
[1767985736844,0.001,3091.4,3091.0,0.97331342]
[1767985737042,0.001,3091.7,3091.4,0.97331342]
[1767985737266,0.001,3091.7,3091.0,0.97331342]
[1767985738852,0.001,3091.7,3091.1,0.97331342]
[1767985740550,0.001,3091.7,3091.1,3.23508947]
[1767985740765,0.001,3091.7,3091.2,0.97331342]
[1767985742478,0.001,3091.7,3091.3,4.20819841]
[1767985742654,0.00080552,3092.0,3091.7,0.97331342]
[1767985742848,0.00080552,3092.0,3091.4,0.97331342]
[1767985743043,0.00080552,3092.0,3091.2,0.99165958]
[1767985743243,0.98067804,3091.9,3091.1,3.48909037]
[1767985743467,3.67786601,3092.0,3090.6,0.0028048]
[1767985743468,0.01930595,3091.4,3090.6,0.0028048]
[1767985743645,0.01930595,3091.3,3090.6,0.0028048]
[1767985744070,0.01930595,3091.1,3090.6,0.0028048]
[1767985744265,0.99998399,3091.1,3090.6,0.0028048]
[1767985744465,0.01930595,3091.1,3090.6,0.0028048]
[1767985744871,0.01930595,3091.3,3090.6,0.99446438]
[1767985746480,0.27330595,3091.6,3090.8,0.99165958]